{"text_format":"3","workbook":"xlsx","n_sheets":3,"sheets":["Feuil1","Feuil2","Feuil3"],"not_rendered":{"images":2},"read":"whole","date_system":"1900"}

{"sheet":"Feuil1","index":0,"n_rows":54,"n_cols":12,"rows_kept":54,"merged":[[0,0,1,11],[5,1,5,11],[21,11,22,11],[25,8,25,9],[26,8,26,9],[27,8,27,9],[28,8,28,9],[29,8,29,9],[30,8,30,9],[31,8,31,9],[32,8,32,9],[33,8,33,9],[34,8,34,9],[35,8,35,9],[36,8,36,9],[43,6,43,10],[44,8,44,9],[45,8,45,9],[46,8,46,9],[47,8,47,9],[48,8,48,9],[49,8,49,9],[50,8,50,9]]}
["Inventaire détaillé du mobilier selon valeur à neuf"]
[]
[]
[]
[]
["Preneur d'assurances:"]
[]
[]
["Enrtrée, hall","€","Salon","€","Salle à manger","€","Chambres","Parents","Enfant 1","Enfant 2","Autre ch."]
["Tapis",null,"Tapis",null,"Tapis",null,"Lits, tables de nuit"]
["Porte-manteau",null,"Fauteuils, tables, chaises",null,"Fauteuils, tables, chaises",null,"Garde-robe, toilette"]
["Fauteuils, tables, chaises",null,"Objets décoratifs",null,"Objets décoratifs",null,"Sièges"]
["Objets décoratifs",null,"Rideaux et tentures",null,"Rideaux et tentures",null,"Tapis"]
["Appareils d'éclairage",null,"Livres",null,"Cristaux, verres",null,"Tentures, rideaux"]
["Appareils de chauffage",null,"Appareils d'éclairage",null,"Argenterie, couverts",null,"Appareils d'éclairage"]
["Meubles",null,"Appareils de chauffage",null,"Service de table",null,"Appareils de chauffage"]
["Placard",null,"Horloges, pendules",null,"Appareils d'éclairage",null,"Literie"]
["Garde-robes",null,"Instruments de musique",null,"Appareils de chauffage",null,"Vêtements, chaussures"]
["Bagages",null,"Radio, télévision",null,"Horloges, pendules",null,"Fourrures"]
["Tableaux",null,"Installation hifi, stéréo",null,"Linge de table",null,"Objets décoratifs"]
["Miroirs",null,"Disques, cassettes",null,"Tableaux",null,"Tableaux"]
["Gravures",null,"Meubles",null,"Meubles",null,"Jouets",{"$nulls":4},"Sous-total chambre"]
["Divers",null,"Divers",null,"Divers",null,"Divers"]
["Sous-total",{"$f":"SUM(B10:B23)","v":{"v":0,"d":"0.00 €"}},"Sous-total",{"$f":"SUM(D10:D23)","v":{"v":0,"d":"0.00 €"}},"Sous-total",{"$f":"SUM(F10:F23)","v":{"v":0,"d":"0.00 €"}},"Sous-total",{"$f":"SUM(H10:H23)","v":{"v":0,"d":"0.00 €"}},{"$f":"SUM(I10:I23)","v":{"v":0,"d":"0.00 €"}},{"$f":"SUM(J10:J23)","v":{"v":0,"d":"0.00 €"}},{"$f":"SUM(K10:K23)","v":{"v":0,"d":"0.00 €"}},{"$f":"SUM(H24:K24)","v":{"v":0,"d":"0.00 €"}}]
[]
["Cuisine","€","Salle de bain","€","Objet d'art","€","Cave","€","Buanderie",null,"€"]
["Cuisinière, réchaud, four",null,"Armoires",null,"Argenterie",null,"Mazout",null,"Machine à laver"]
["Ustensiles de cuisine",null,"Installations sanitaires",null,"Bijoux",null,"Charbon, bois",null,"Séchoir"]
["Vaisselle",null,"Chauffe-eau",null,"Fourrures",null,"Réserves, provisions",null,"Essoreuse"]
["Appareils ménagers",null,"Appareils de chauffage",null,"Meubles d'époque",null,"Alcools, vin, liqueur",null,"Calandre"]
["Chaises, tables, meubles",null,"Pharmacie",null,"Objets d'art",null,"Meubles",null,"Matériel de repassage"]
["Rideaux et tentures",null,"Rasoir, séchoir, etc…",null,"Objets de collection",null,"Outillage",null,"Ustensiles de nettoyage"]
["Horloges, pendules",null,"Divers",null,"Divers",null,"Divers",null,"Produits d'entretien"]
["Appareils d'éclairage",null,"Sous-total",{"$f":"SUM(D27:D33)","v":{"v":0,"d":"0.00 €"}},"Sous-total",{"$f":"SUM(F27:F33)","v":{"v":0,"d":"0.00 €"}},"Sous-total",{"$f":"SUM(H27:H33)","v":{"v":0,"d":"0.00 €"}},"Outillage"]
["Linge de cuisine",null,"Abri de jardin","€","Grenier","€",null,null,"Frigo, congélateur"]
["Frigo, surgélateur",null,"Meubles",null,"Coffres",{"$nulls":3},"Divers"]
["Lave-vaisselle",null,"Outillages",null,"Malles, valises",{"$nulls":3},"Sous-total",null,{"$f":"SUM(K27:K36)","v":{"v":0,"d":"0.00 €"}}]
["Micro-onde",null,"Appareils et machines",null,"Livres"]
["Produits alimentaires",null,"Matériel de jardin",null,"Collections"]
["Divers",null,"Divers",null,"Vêtements"]
["Sous-total",{"$f":"SUM(B27:B40)","v":{"v":0,"d":"0.00 €"}},"Sous-total",{"$f":"SUM(D36:D40)","v":{"v":0,"d":"0.00 €"}},"Divers"]
[{"$nulls":4},"Sous-total",{"$f":"SUM(F36:F41)","v":{"v":0,"d":"0.00 €"}}]
["Bureau","€","Divers","€","Garage/Remise","€"]
["Tapis",null,"Bijoux, objets précieux",null,"Voiture",null,"Récapitulatif"]
["Meuble, coffre-fort",null,"Appareils photo",null,"Bicyclettes",null,{"$f":"A9","v":"Enrtrée, hall"},{"$f":"B24","v":{"v":0,"d":"0.00 €"}},{"$f":"C43","v":"Divers"},null,{"$f":"D53","v":{"v":0,"d":"0.00 €"}}]
["Bibliothèque",null,"Caméra et accessoires",null,"Cyclomoteurs (max 49cc)",null,{"$f":"C9","v":"Salon"},{"$f":"D24","v":{"v":0,"d":"0.00 €"}},{"$f":"G9","v":"Chambres"},null,{"$f":"L24","v":{"v":0,"d":"0.00 €"}}]
["Matériel informatique",null,"Outillage",null,"Tondeuse",null,{"$f":"E9","v":"Salle à manger"},{"$f":"F24","v":{"v":0,"d":"0.00 €"}},{"$f":"G26","v":"Cave"},null,{"$f":"H34","v":{"v":0,"d":"0.00 €"}}]
["Machine à écrire",null,"Machine à coudre",null,"Machine à laver",null,{"$f":"A26","v":"Cuisine"},{"$f":"B41","v":{"v":0,"d":"0.00 €"}},{"$f":"I26","v":"Buanderie"},null,{"$f":"K37","v":{"v":0,"d":"0.00 €"}}]
["Appareils d'éclairage",null,"Machine à tricoter",null,"Outillage",null,{"$f":"C26","v":"Salle de bain"},{"$f":"D34","v":{"v":0,"d":"0.00 €"}},{"$f":"E43","v":"Garage/Remise"},null,{"$f":"F54","v":{"v":0,"d":"0.00 €"}}]
["Appareils de chauffage",null,"Matériel de sport",null,"Rayonnages",null,{"$f":"E26","v":"Objet d'art"},{"$f":"F34","v":{"v":0,"d":"0.00 €"}},{"$f":"E35","v":"Grenier"},null,{"$f":"F42","v":{"v":0,"d":"0.00 €"}}]
["Livre, périodiques",null,"Collections",null,"Meubles de jardin",null,{"$f":"A43","v":"Bureau"},{"$f":"B53","v":{"v":0,"d":"0.00 €"}},{"$f":"C35","v":"Abri de jardin"},null,{"$f":"D41","v":{"v":0,"d":"0.00 €"}}]
["Divers",null,"Divers",null,"Matériel de jardin"]
["Sous-total",{"$f":"SUM(B44:B52)","v":{"v":0,"d":"0.00 €"}},"Sous-total",{"$f":"SUM(D44:D52)","v":{"v":0,"d":"0.00 €"}},"Divers",null,"Total général "]
[{"$nulls":4},"Sous-total",{"$f":"SUM(F44:F53)","v":{"v":0,"d":"0.00 €"}},{"$f":"SUM(H45:H51)+SUM(K45:K51)","v":{"v":0,"d":"0.00 €"}}]

{"sheet":"Feuil2","index":1,"n_rows":0,"n_cols":0,"rows_kept":0}

{"sheet":"Feuil3","index":2,"n_rows":0,"n_cols":0,"rows_kept":0}